bitfinex-derivatives/quotes_ETHF0:USTF0_20251001
["timestamp","ask_amount","ask_price","bid_price","bid_amount"]
[1759332348841,3.2078,4335.3,4335.0,0.9894]
[1759332349039,1.71569,4335.8,4335.7,0.3833]
[1759332349239,1.71569,4335.8,4335.7,0.9296]
[1759332349435,1.71775183,4335.8,4335.7,0.9296]
[1759332349640,1.15565183,4335.8,4335.7,1.3194]
[1759332350045,1.71775183,4335.8,4335.7,0.9296]
[1759332352040,0.74076183,4335.8,4335.7,1.3194]
[1759332355741,0.38466183,4335.8,4335.7,1.3194]
[1759332355947,0.00206183,4335.8,4335.7,1.3194]
[1759332357139,0.41695183,4335.8,4335.7,1.3194]
[1759332358352,0.00206183,4335.8,4335.7,1.7343]
[1759332358650,0.00206183,4335.8,4335.7,1.3194]
[1759332359050,0.36036183,4335.8,4335.7,1.3194]
[1759332359349,0.72966183,4335.8,4335.7,1.3194]
[1759332360549,1.21493015,4335.8,4335.7,1.3194]
[1759332361545,0.84563015,4335.8,4335.7,1.3194]
[1759332361944,1.21493015,4335.8,4335.7,1.3194]
[1759332362151,1.75783015,4335.8,4335.7,0.9296]
[1759332362652,0.7276,4335.1,4335.0,1.4851]
[1759332362855,1.2705,4335.1,4335.0,1.4851]
[1759332363048,1.75699111,4335.1,4335.0,1.4851]
[1759332363251,1.75699111,4335.1,4335.0,0.5458]
[1759332363443,0.77331,4334.6,4334.5,1.7201]
[1759332363646,1.03739,4335.2,4334.3,0.3552]
[1759332363647,0.77332,4334.4,4334.3,0.3552]
[1759332363951,0.77332,4334.4,4334.3,0.723]
[1759332364151,0.3583,4334.4,4334.3,0.723]
[1759332364353,0.3583,4334.4,4334.3,1.2688]
[1759332364552,0.41502,4334.5,4334.3,0.723]
[1759332364855,3.98109,4334.8,4334.7,1.2688]
[1759332365053,4.46755801,4334.8,4334.7,1.2688]
[1759332366154,4.83685801,4334.8,4334.7,1.2688]
[1759332366356,5.37975801,4334.8,4334.7,0.9136]
[1759332366749,5.37975801,4334.8,4334.7,0.5458]
[1759332367243,1.14261,4334.6,4334.5,0.2133]
[1759332367444,2.17197801,4334.6,4334.5,1.1269]
[1759332369557,1.21406801,4334.6,4334.5,1.4821]
[1759332370851,1.75696801,4334.6,4334.5,1.4821]
[1759332371052,1.75696801,4334.6,4334.5,1.1269]
[1759332373152,0.84476801,4334.6,4334.5,1.4821]
[1759332373361,1.03727,4335.7,4334.8,0.41498]
[1759332373362,0.41495,4335.2,4334.8,0.41498]
[1759332373650,3.2078,4335.3,4335.2,0.5458]
[1759332373856,3.69425983,4335.3,4335.2,1.2688]
[1759332374161,4.05255983,4335.3,4335.2,1.2688]
[1759332374457,4.42185983,4335.3,4335.2,1.2688]
[1759332377558,4.83679983,4335.3,4335.2,1.2688]
[1759332377758,5.37969983,4335.3,4335.2,1.2688]
[1759332378664,1.68546,4335.1,4335.0,0.5458]
[1759332378960,2.17191983,4335.1,4335.0,0.5458]
[1759332379156,1.2705,4334.7,4334.6,0.9136]
[1759332379362,2.17195983,4334.7,4334.6,0.9136]
[1759332379556,2.17195983,4334.7,4334.6,1.2688]
[1759332380261,1.62905983,4334.7,4334.6,1.2688]
[1759332380463,2.15325983,4334.7,4334.6,0.5458]
[1759332380664,2.15325983,4334.7,4334.0,0.21896232]
[1759332380665,1.14015,4334.2,4334.1,1.2575]
[1759332380855,1.66435,4334.2,4334.1,0.9134]
[1759332381059,1.66435,4334.1,4334.0,0.00266232]
[1759332381260,2.15141518,4334.1,4334.0,0.00266232]
[1759332381563,2.15141518,4334.1,4334.0,0.91606232]
[1759332381761,1.62721518,4334.1,4334.0,1.47996232]
[1759332381964,1.21216518,4334.1,4334.0,1.47996232]
[1759332382164,0.84726518,4334.1,4334.0,1.47996232]
[1759332383164,0.3602,4334.1,4334.0,1.47996232]
[1759332384361,3.4428,4334.3,4334.2,0.3806]
[1759332384668,4.71635698,4334.3,4334.2,1.3079]
[1759332385071,4.82805698,4334.3,4334.2,1.3079]
[1759332385365,3.2078,4334.8,4334.6,0.5581]
[1759332385567,1.27375842,4334.7,4334.6,1.3079]
[1759332385765,0.48715842,4334.7,4334.6,1.72291]
[1759332386163,0.235,4335.1,4334.5,0.2166]
[1759332386164,0.41496,4335.1,4335.0,1.5245]
[1759332386368,0.41495,4335.2,4335.1,1.72286]
[1759332386567,0.90228787,4335.2,4335.1,1.3079]
[1759332386766,1.27388787,4335.2,4335.1,1.3079]
[1759332386963,1.62058787,4335.2,4335.1,1.3079]
[1759332387369,1.20563787,4335.2,4335.1,1.3079]
[1759332387667,0.48733787,4335.2,4335.1,6.3079]
[1759332387858,3.62268,4335.9,4335.7,1.3079]
[1759332388058,0.48950279,4335.8,4335.7,1.3079]
[1759332388466,0.48950279,4335.8,4335.7,6.3079]
[1759332388658,0.00206183,4335.8,4335.7,6.3079]
[1759332388961,3.2078,4336.4,4335.7,6.96454]
[1759332389266,3.2078,4336.4,4336.3,1.72274]
[1759332389465,3.69502799,4336.4,4336.3,1.95774]
[1759332390066,3.6967864,4336.4,4336.3,1.95774]
[1759332390265,3.20955841,4336.4,4336.3,1.95774]
[1759332390465,3.69649381,4336.4,4336.3,1.95774]
[1759332390669,3.20955841,4336.4,4336.3,1.95774]
[1759332391271,3.58115841,4336.4,4336.3,1.5429]
[1759332392172,4.06593933,4336.4,4336.3,1.5429]
[1759332393373,3.58115841,4336.4,4336.3,1.3079]
[1759332393669,3.58115841,4336.4,4336.3,1.5429]
[1759332393870,0.37335841,4336.4,4336.3,1.5429]
[1759332398472,1.65508841,4336.4,4336.3,1.3079]
[1759332398676,1.65336,4336.1,4336.0,0.3806]
[1759332399178,1.65336,4336.1,4336.0,0.9387]
[1759332403277,1.65336,4336.1,4336.0,1.1553]
[1759332403582,1.13316,4336.1,4336.0,1.5245]
[1759332403775,0.7183,4336.1,4336.0,1.93937]
[1759332403975,3.96475841,4336.4,4336.0,1.93937]
[1759332403976,3.20955841,4336.4,4336.0,0.9664]
[1759332404182,3.62439841,4336.4,4336.3,0.7498]
[1759332404476,3.20955841,4336.4,4336.3,1.72274]
[1759332404979,3.62438841,4336.4,4336.3,1.72274]
[1759332405181,3.99598841,4336.4,4336.3,1.72274]
[1759332406579,3.99598841,4336.4,4336.3,1.3079]
[1759332407381,3.99598841,4336.4,4336.3,1.72274]
[1759332407881,4.34268841,4336.4,4336.3,1.72274]
[1759332409482,4.34268841,4336.4,4336.3,1.3079]
[1759332409983,4.34268841,4336.4,4336.3,1.72274]
[1759332412780,4.86288841,4336.4,4336.3,1.72274]
[1759332413279,4.34268841,4336.4,4336.3,1.72274]
[1759332413681,4.86258841,4336.4,4336.3,1.35354]
[1759332413988,0.3568,4335.7,4335.6,1.65211]
[1759332414282,0.3568,4335.7,4335.6,1.88711]
[1759332414885,1.1119,4335.7,4335.6,1.65211]
[1759332415082,1.6318,4335.7,4335.6,1.65211]
[1759332415381,1.6318,4335.7,4334.7,1.24063349]
[1759332415382,1.63183,4335.4,4335.3,0.533]
[1759332415689,2.11731763,4335.4,4335.3,0.533]
[1759332416187,2.11731763,4335.4,4335.3,0.94794]
[1759332416489,2.11731763,4335.4,4335.3,1.28604]
[1759332416785,3.2078,4335.7,4335.1,0.235]
[1759332416786,3.2078,4336.2,4336.0,0.206]
[1759332417083,4.83955,4336.2,4336.1,0.8711]
[1759332417385,5.32531068,4336.2,4336.1,0.533]
[1759332417589,1.1119,4335.8,4335.7,1.2372]
[1759332417785,1.59766068,4335.8,4335.7,1.2372]
[1759332417981,0.48576068,4335.8,4335.7,1.6521]
[1759332419090,0.41659841,4336.4,4336.3,1.65204]
[1759332419484,0.00175841,4336.4,4336.3,1.65204]
[1759332419685,1.25907523,4336.4,4336.3,1.65204]
[1759332419889,0.84424523,4336.4,4336.3,1.65204]
[1759332420495,1.18444523,4336.4,4336.3,1.2372]
[1759332421793,1.70434523,4336.4,4336.3,1.2372]
[1759332422192,1.70434523,4336.4,4336.3,0.8711]
[1759332422795,1.18444523,4336.4,4336.3,1.2372]
[1759332423301,0.84424523,4336.4,4336.3,1.2372]
[1759332424700,1.25907523,4336.4,4336.3,1.65204]
[1759332425190,0.84424523,4336.4,4336.3,1.65204]
[1759332425393,1.25907523,4336.4,4336.3,1.65204]
[1759332425590,1.59927523,4336.4,4336.3,1.65204]
[1759332425791,1.18444523,4336.4,4336.3,1.65204]
[1759332426196,0.84424523,4336.4,4336.3,1.65204]
[1759332426396,0.48744523,4336.4,4336.3,1.65204]
[1759332427299,1.25907523,4336.4,4336.3,1.65204]
[1759332427901,1.59927523,4336.4,4336.3,1.65204]
[1759332428102,1.59927523,4336.4,4336.3,1.2372]
[1759332428504,1.18444523,4336.4,4336.3,1.2372]
[1759332428698,1.18444523,4336.4,4336.3,1.65204]
[1759332429203,1.59927523,4336.4,4336.3,1.65204]
[1759332429505,1.59927523,4336.4,4336.3,1.2372]
[1759332429704,1.18444523,4336.4,4336.3,1.65204]
[1759332430098,1.59927523,4336.4,4336.3,1.65204]
[1759332430500,2.11917523,4336.4,4336.3,1.2372]
[1759332430904,1.18444523,4336.4,4336.3,1.65204]
[1759332431107,1.59927523,4336.4,4336.3,1.65204]
[1759332431510,1.18444523,4336.4,4336.3,1.65204]
[1759332431907,1.59927523,4336.4,4336.3,1.65204]
[1759332433014,1.59927523,4336.4,4336.3,1.2372]
[1759332433214,2.11917523,4336.4,4336.3,0.8711]
[1759332433407,1.59927523,4336.4,4336.3,1.2372]
[1759332433614,2.11917523,4336.4,4336.3,0.8711]
[1759332434615,1.59927523,4336.4,4336.3,1.65204]
[1759332434815,0.90227523,4336.4,4336.3,1.65204]
[1759332436116,1.25907523,4336.4,4336.3,1.65204]
[1759332436504,1.25907523,4336.4,4336.3,1.2372]
[1759332436710,1.59927523,4336.4,4336.3,1.2372]
[1759332436910,1.25907523,4336.4,4336.3,1.2372]
[1759332437109,1.25907523,4336.4,4336.3,1.65204]
[1759332437415,0.84424523,4336.4,4336.3,1.65204]
[1759332438015,1.59927523,4336.4,4336.3,1.65204]
[1759332438209,2.11917523,4336.4,4336.3,1.65204]
[1759332438613,1.70434523,4336.4,4336.3,1.65204]
[1759332438810,1.18444523,4336.4,4336.3,1.65204]
[1759332439720,0.48744523,4336.4,4336.3,1.65204]
[1759332440711,0.00175841,4336.4,4336.3,1.65204]
[1759332446418,1.222,4337.5,4337.4,0.41474]
[1759332446616,1.62161962,4337.5,4337.4,1.2366]
[1759332446917,1.62161962,4337.5,4337.4,1.65134]
[1759332447418,1.6245608,4337.5,4337.4,1.65369229]
[1759332447822,2.1258608,4337.5,4337.4,1.65369229]
[1759332448021,2.1258608,4337.5,4337.4,1.30289229]
[1759332448424,1.7111308,4337.5,4337.4,1.30289229]
[1759332448617,1.71113923,4337.5,4337.4,1.30289229]
[1759332449126,2.12586923,4337.5,4337.4,0.88815229]
[1759332449623,2.12586923,4337.5,4337.4,1.30289229]
[1759332449824,2.12586923,4337.5,4337.4,0.55125229]
[1759332450428,2.12586923,4337.5,4337.4,0.00235229]
[1759332450723,2.12586923,4337.5,4337.4,0.55125229]
[1759332451121,2.12586923,4337.5,4337.4,0.00235229]
[1759332451425,2.12586923,4337.5,4337.4,0.96599229]
[1759332451627,2.12586923,4337.5,4337.4,0.55125229]
[1759332455925,1.71113923,4337.5,4337.4,0.55125229]
[1759332456131,2.12586923,4337.5,4337.4,0.88815229]
[1759332456428,1.20983923,4337.5,4337.4,1.65369229]
[1759332456726,0.48913923,4337.5,4337.4,1.65369229]
[1759332457328,0.85613923,4337.5,4337.4,1.23895229]
[1759332457631,0.85613923,4337.5,4337.4,1.65369229]
[1759332457833,0.48913923,4337.5,4337.4,1.65369229]
[1759332458329,0.48913923,4337.5,4337.4,1.88869229]
[1759332458731,0.48913923,4337.5,4337.4,1.65369229]
[1759332458932,1.27086923,4337.5,4337.4,1.23895229]
[1759332459637,1.27086923,4337.5,4337.4,1.65369229]
[1759332460632,0.85613923,4337.5,4337.4,1.65369229]
[1759332461034,1.27086923,4337.5,4337.4,1.65369229]
[1759332461536,0.48913923,4337.5,4337.4,1.65369229]
[1759332462239,0.90386923,4337.5,4337.4,1.65369229]
[1759332463132,1.27086923,4337.5,4337.4,1.65369229]
[1759332463633,1.27086923,4337.5,4337.4,1.23895229]
[1759332464031,2.12586923,4337.5,4337.4,0.55125229]
[1759332464939,1.62456923,4337.5,4337.4,1.65369229]
[1759332465136,1.62456923,4337.5,4337.4,1.23895229]
[1759332465433,0.90386923,4337.5,4337.4,1.65369229]
[1759332465627,1.27086923,4337.5,4337.4,1.65369229]
[1759332466233,0.85613923,4337.5,4337.4,1.65369229]
[1759332467738,1.27086923,4337.5,4337.4,1.65369229]
[1759332468233,1.62456923,4337.5,4337.4,0.41709229]
[1759332468431,2.12586923,4337.5,4337.4,0.00235229]
[1759332468627,2.12586923,4337.5,4337.4,0.55125229]
[1759332468831,2.12586923,4337.5,4337.4,0.00235229]
[1759332469538,2.12586923,4337.5,4337.4,0.55125229]
[1759332471739,2.36086923,4337.5,4337.4,0.00235229]
[1759332471939,2.36086923,4337.5,4337.4,0.55125229]
[1759332472835,2.36086923,4337.5,4337.4,0.00235229]
[1759332473237,7.46906923,4337.5,4337.4,0.00235229]
[1759332473638,7.36086923,4337.5,4337.4,0.52445229]
[1759332474136,7.36086923,4337.5,4337.4,0.00235229]
[1759332476738,1.20983923,4337.5,4337.4,1.62169229]
[1759332476943,0.85613923,4337.5,4337.4,1.62169229]
[1759332477442,0.48913923,4337.5,4337.4,1.62169229]
[1759332479340,0.48913923,4337.5,4337.4,1.85669229]
[1759332479742,0.90386923,4337.5,4337.4,1.85669229]
[1759332480249,0.90386923,4337.5,4337.4,1.44195229]
[1759332480438,1.26576923,4337.5,4337.4,1.85669229]
[1759332480746,0.48913923,4337.5,4337.4,1.85669229]
[1759332481138,0.48913923,4337.5,4337.4,6.85669229]
[1759332481444,3.2078,4339.2,4338.7,1.2046]
[1759332481640,0.3619,4338.9,4338.8,1.2046]
[1759332481939,1.2516,4338.9,4338.8,1.2046]
[1759332482335,1.25366947,4338.9,4338.8,1.2046]
[1759332482533,1.2516,4338.8,4338.7,0.5221]
[1759332482841,0.8897,4338.5,4338.4,1.2046]
[1759332483031,1.2516,4338.5,4338.4,1.2046]
[1759332483232,0.7148,4338.5,4338.4,1.2046]
[1759332483436,1.2516,4338.5,4338.4,1.2046]
[1759332484336,0.3619,4338.5,4338.4,1.2046]
[1759332484642,0.41463,4338.6,4338.4,1.61924]
[1759332484842,0.65166947,4338.9,4338.6,1.61922]
[1759332485144,0.65166947,4338.9,4338.8,1.2046]
[1759332485450,1.66826947,4338.9,4338.8,1.2046]
[1759332485848,1.25366947,4338.9,4338.8,1.2046]
[1759332487550,0.53886947,4338.9,4338.8,1.2046]
[1759332487748,0.36396947,4338.9,4338.8,1.2046]
[1759332488152,0.90076947,4338.9,4338.8,1.2046]
[1759332488447,0.00206947,4338.9,4338.8,1.2046]
[1759332489048,0.36396947,4338.9,4338.8,1.2046]
[1759332489250,0.00206947,4338.9,4338.8,1.2046]
[1759332489848,1.25366947,4338.9,4338.8,1.2046]
[1759332493250,1.73517121,4338.9,4338.8,1.2046]
[1759332494151,1.73517121,4338.9,4338.8,0.8713]
[1759332494751,1.12942,4338.6,4338.5,1.4204]
[1759332494954,1.66622,4338.6,4338.5,1.4204]
[1759332496053,1.2516,4338.6,4338.5,1.83503]
[1759332496752,1.12942,4338.6,4338.5,1.83503]
[1759332497053,1.66622,4338.6,4338.5,1.4204]
[1759332498362,0.41461,4338.7,4338.6,1.2046]
[1759332498657,0.77651,4338.7,4338.6,1.61922]
[1759332498853,0.00206947,4338.9,4338.6,6.2046]
[1759332499045,0.41444,4340.5,4340.4,0.6825]
[1759332499353,0.5368,4341.1,4340.7,0.6825]
[1759332499657,0.41437,4341.3,4341.0,0.8983]
[1759332499956,0.47732686,4341.2,4341.1,1.2056]
[1759332500154,0.65777359,4341.3,4341.2,1.2056]
[1759332500352,1.19047359,4341.3,4341.2,0.875]
[1759332500956,1.1875,4341.1,4341.0,0.0020456]
[1759332501156,1.1875,4341.1,4341.0,1.2076456]
[1759332501453,0.00297359,4341.3,4341.0,0.8807456]
[1759332501653,0.00297359,4341.3,4341.2,1.2056]
[1759332501848,0.00297359,4341.3,4341.2,1.4406]
[1759332503654,0.00297359,4341.3,4341.2,6.4406]
[1759332503854,0.5,4342.0,4341.9,1.2025]
[1759332504060,0.5,4342.0,4341.9,1.4375]
[1759332504553,0.5,4342.0,4341.9,1.2025]
[1759332504756,0.5025691,4342.0,4341.9,1.4375]
[1759332505262,0.5025691,4342.0,4341.9,6.4375]
[1759332506153,0.5025691,4342.0,4341.9,6.2025]
[1759332506355,0.5025691,4342.0,4341.2,3.2078]
[1759332506356,0.41434,4341.6,4341.2,3.2078]
[1759332506651,0.41434,4341.6,4341.5,0.6781]
[1759332506652,1.61994,4341.6,4341.5,0.6781]
[1759332507051,0.41437,4341.3,4340.7,3.2078]
[1759332507253,1.61997,4341.3,4341.2,0.3441]
[1759332507559,1.2056,4341.3,4341.2,1.2025]
[1759332508148,1.09167,4341.2,4341.1,0.235]
[1759332508350,1.2056,4341.1,4341.0,0.0020456]
[1759332509456,1.2056,4341.1,4341.0,0.3461456]
[1759332509655,1.2056,4341.1,4341.0,0.0020456]
[1759332509855,1.2056,4341.1,4341.0,1.2045456]
[1759332510059,1.2056,4341.1,4341.0,1.4111456]
[1759332510261,0.94265,4341.5,4341.1,0.41438]
[1759332510558,1.2056,4341.1,4341.0,0.3461456]
[1759332510859,1.2056,4341.1,4340.1,3.2078]
[1759332510860,0.41446,4340.4,4340.1,3.2078]
[1759332511066,0.5283,4340.4,4340.0,0.41448]
[1759332511257,0.5283,4340.4,4340.3,0.8685]
[1759332511258,1.2056,4340.4,4340.3,0.8685]
[1759332511458,0.6773,4340.1,4340.0,0.8685]
[1759332511659,1.2056,4340.1,4340.0,0.3441]
[1759332511864,1.2056,4340.1,4340.0,0.34637703]
[1759332512272,6.2056,4340.1,4340.0,0.00227703]
[1759332513465,6.2056,4340.1,4340.0,0.33089135]
[1759332517268,1.2056,4340.1,4340.0,0.33089135]
[1759332518476,1.2056,4340.1,4340.0,0.67499135]
[1759332518779,1.2056,4340.1,4340.0,1.19939135]
[1759332519276,1.2056,4340.1,4340.0,0.67499135]
[1759332519669,1.2056,4340.1,4340.0,0.33089135]
[1759332525378,2.08863258,4340.1,4340.0,0.33089135]
[1759332525675,1.62008,4340.1,4340.0,0.33089135]
[1759332526773,1.62008,4340.1,4340.0,0.00227703]
[1759332527279,1.62008,4340.1,4340.0,1.20477703]
[1759332527973,3.552,4340.3,4340.2,1.61697]
[1759332528174,3.8851,4340.8,4340.7,1.2025]
[1759332528380,3.552,4340.8,4340.7,1.2025]
[1759332528573,0.3442,4341.0,4340.9,0.41439]
[1759332528881,0.3442,4341.0,4340.9,1.61689]
[1759332529175,1.2056,4341.0,4340.9,1.2025]
[1759332530676,0.41439,4341.1,4340.9,1.2025]
[1759332530983,1.2056,4341.2,4341.1,1.2025]
[1759332531275,0.3442,4341.2,4341.1,1.2025]
[1759332532179,3.2078,4341.3,4341.2,1.61687]
[1759332532483,3.2078,4341.3,4341.2,1.2025]
[1759332533782,0.8281691,4342.0,4341.9,0.6977]
[1759332533988,0.8281691,4342.0,4341.9,1.1977]
[1759332534983,1.6647691,4342.0,4341.9,1.1977]
[1759332536487,3.2078,4343.3,4341.9,6.1977]
[1759332536685,0.8577,4342.9,4342.8,1.1977]
[1759332536887,0.8473,4342.5,4342.4,3.4428]
[1759332537185,1.3574,4342.5,4342.4,3.5566]
[1759332537388,1.3574,4342.5,4342.4,4.4055]
[1759332537780,1.35909823,4342.5,4342.4,4.1405]
[1759332538285,1.35909823,4342.5,4342.4,3.9055]
[1759332538488,1.35909823,4342.5,4342.4,4.4055]
[1759332538679,0.83739823,4342.5,4342.4,4.4055]
[1759332539291,1.35909823,4342.5,4342.4,4.6405]
[1759332539587,1.35909823,4342.5,4342.4,4.4055]
[1759332539783,1.35909823,4342.5,4342.4,3.9055]
[1759332540092,0.83739823,4342.5,4342.4,4.4055]
[1759332540475,1.03259823,4342.5,4342.4,4.4055]
[1759332540686,1.35909823,4342.5,4342.4,3.9055]
[1759332541082,1.35909823,4342.5,4342.4,3.5566]
[1759332541384,1.35909823,4342.5,4341.5,0.1967]
[1759332541385,0.3256,4341.9,4341.8,4.55481]
[1759332541582,0.8357,4341.9,4341.8,5.05481]
[1759332541786,1.57651,4341.9,4341.8,3.2078]
[1759332542083,1.1622,4341.3,4341.2,4.1405]
[1759332542289,1.1622,4341.3,4341.2,4.6405]
[1759332542485,0.8357,4341.5,4341.4,1.1977]
[1759332542684,1.77174,4341.5,4341.4,0.3488]
[1759332542991,0.8357,4341.9,4341.8,0.3489]
[1759332543282,1.1622,4341.9,4341.8,0.9327]
[1759332543484,0.8357,4341.9,4341.8,1.61202]
[1759332543884,0.8357,4341.9,4341.8,1.84702]
[1759332544388,0.8357,4342.1,4342.0,1.61199]
[1759332544687,0.83739823,4342.5,4342.4,1.1977]
[1759332544885,1.35909823,4342.5,4342.4,0.9327]
[1759332545295,1.35909823,4342.5,4342.4,1.4327]
[1759332545479,1.16389823,4342.5,4342.4,1.4327]
[1759332545786,0.83739823,4342.5,4342.4,1.4327]
[1759332545985,1.16389823,4342.5,4342.4,1.1977]
[1759332546190,1.35909823,4342.5,4342.4,0.9327]
[1759332546384,1.16389823,4342.5,4342.4,1.4327]
[1759332546582,1.35909823,4342.5,4342.4,0.9327]
[1759332547184,1.16389823,4342.5,4342.4,1.4327]
[1759332547489,0.83739823,4342.5,4342.4,1.4327]
[1759332547691,1.35909823,4342.5,4342.4,0.3488]
[1759332547892,1.35909823,4342.5,4342.0,0.5]
[1759332548083,1.35909823,4342.5,4342.4,0.6977]
[1759332548284,1.16389823,4342.5,4342.4,1.1977]
[1759332548489,0.00169823,4342.5,4342.4,1.1977]
[1759332548992,1.35909823,4342.5,4342.4,0.6977]
[1759332549187,1.35909823,4342.5,4342.4,0.9327]
[1759332549488,1.03259823,4342.5,4342.4,1.84696]
[1759332549688,0.00169823,4342.5,4342.4,1.84696]
[1759332550395,0.01,4345.0,4343.9,0.5]
[1759332550593,0.01,4345.0,4344.9,4.81952]
[1759332550889,0.8457,4345.0,4344.9,4.6415]
[1759332551088,0.01,4345.0,4344.9,4.6415]
[1759332551282,0.43240484,4345.7,4344.9,4.6415]
[1759332551283,0.01845484,4345.7,4345.6,0.5]
[1759332551483,0.02138303,4345.7,4345.6,0.736]
[1759332551881,0.53148303,4345.7,4345.6,0.236]
[1759332552089,0.53148303,4345.7,4345.2,0.5]
[1759332552294,0.41398,4345.3,4345.2,0.5]
[1759332552495,0.5101,4345.1,4345.0,0.5]
[1759332552693,0.5101,4345.1,4345.0,0.236]
[1759332552989,0.02138303,4345.7,4345.0,8.9438]
[1759332552990,0.5101,4345.6,4345.0,8.9438]
[1759332553181,0.5101,4345.6,4345.0,4.54451]
[1759332553385,0.41399,4345.3,4345.1,0.236]
[1759332553592,0.92409,4345.3,4345.2,0.236]
[1759332553791,0.5101,4345.2,4345.1,0.236]
[1759332553993,0.5101,4345.2,4345.1,0.5]
[1759332554189,0.5101,4345.2,4345.1,0.736]
[1759332554393,0.5101,4345.2,4345.1,0.236]
[1759332554589,0.41401,4345.0,4344.9,0.0018566]
[1759332554981,0.60921,4345.0,4344.9,0.0018566]
[1759332555184,6.11931,4345.0,4344.9,0.0018566]
[1759332555690,1.11931,4345.0,4344.9,0.0018566]
[1759332556089,0.7053,4345.0,4344.9,0.0018566]
[1759332556988,5.7053,4345.0,4344.9,0.0018566]
[1759332557487,0.5101,4344.8,4343.6,3.62194]
[1759332557692,0.5101,4344.2,4344.0,0.086]
[1759332557887,0.5101,4344.1,4344.0,0.086]
[1759332558295,0.5101,4343.8,4343.7,0.237]
[1759332558494,0.5101,4343.8,4343.7,0.23937288]
[1759332558893,0.5101,4343.8,4343.7,0.00237288]
[1759332559093,0.5101,4343.8,4343.7,0.23937288]
[1759332560396,0.5101,4343.8,4343.7,0.23837288]
[1759332560588,0.5101,4343.8,4343.7,0.00237288]
[1759332561393,3.7179,4343.8,4343.7,0.00237288]
[1759332561695,8.7179,4343.8,4343.7,0.00237288]
[1759332561891,8.9539,4343.8,4343.7,0.00237288]
[1759332563591,3.9539,4343.8,4343.7,0.00237288]
[1759332563790,4.5982,4343.8,4343.7,0.00237288]
[1759332564196,4.3622,4343.8,4343.7,0.00237288]
[1759332564591,1.1544,4343.8,4343.7,0.32417288]
[1759332564790,0.8257,4343.8,4343.7,1.15697288]
[1759332565497,0.8257,4343.8,4343.7,0.67097288]
[1759332565693,1.1544,4343.8,4343.7,0.67097288]
[1759332565894,0.6443,4343.8,4342.6,3.2078]
[1759332566093,1.1621,4342.7,4342.6,0.3218]
[1759332566301,1.1621,4342.4,4342.3,0.3218]
[1759332566493,1.1621,4342.4,4342.2,0.237]
[1759332566494,1.1621,4342.2,4342.1,3.2078]
[1759332566693,0.2045,4342.0,4341.6,0.486]
[1759332566902,0.8334,4341.7,4341.6,1.15695503]
[1759332567092,0.8334,4341.7,4341.6,0.67095503]
[1759332567293,1.1621,4341.7,4341.6,0.00235503]
[1759332567697,0.41441,4340.9,4340.6,0.486]
[1759332568000,0.2045,4341.0,4340.0,0.49438]
[1759332568001,3.4123,4341.0,4340.0,3.2078]
[1759332568204,0.5178,4340.1,4340.0,3.2078]
[1759332568704,0.5178,4340.1,4339.6,0.3385]
[1759332568705,0.5178,4340.3,4339.8,0.4145]
[1759332568905,0.41445,4340.4,4340.0,0.00272315]
[1759332569104,0.93228,4340.1,4340.0,0.00272315]
[1759332569298,0.93232,4339.7,4339.6,0.1015]
[1759332569499,0.41456,4339.3,4339.0,3.2078]
[1759332569702,0.5178,4339.1,4339.0,3.2078]
[1759332570100,0.41465,4338.4,4338.2,3.2078]
[1759332570308,0.7223,4338.0,4337.9,0.02305289]
[1759332570604,0.7223,4338.0,4337.9,0.02514949]
[1759332570800,0.5178,4338.0,4337.9,0.02514949]
[1759332571197,3.2078,4338.2,4337.9,0.02514949]
[1759332571399,3.7256,4338.2,4338.0,0.238]
[1759332571600,0.7223,4338.0,4337.9,0.26314949]
[1759332571800,0.5178,4338.0,4337.9,0.26314949]
[1759332572506,0.5178,4338.0,4337.9,0.02514949]
[1759332572507,0.7223,4338.0,4337.9,0.02514949]
[1759332572706,1.13699,4338.0,4337.9,0.02514949]
[1759332573401,0.93256,4337.2,4336.4,0.486]
[1759332573604,3.2078,4337.0,4336.4,0.90083]
[1759332573805,0.5178,4336.9,4336.5,0.41483]
[1759332574001,3.2078,4337.0,4336.7,0.4148]
[1759332574200,3.2078,4337.0,4336.8,0.486]
[1759332574397,0.5178,4336.9,4336.7,0.41728992]
[1759332574603,0.5178,4336.9,4336.7,0.24148992]
[1759332574803,0.7223,4337.5,4337.3,0.41474]
[1759332575003,3.2078,4337.8,4337.7,0.486]
[1759332575204,0.5178,4337.7,4337.6,0.41472]
[1759332575503,3.2078,4337.8,4337.6,0.90072]
[1759332575711,0.239,4338.2,4337.7,0.486]
[1759332576005,0.5178,4339.2,4338.3,0.486]
[1759332576207,3.2078,4339.3,4338.3,5.725]
[1759332576414,0.00163026,4338.4,4338.3,5.486]
[1759332576604,0.00163026,4338.4,4338.3,0.725]
[1759332576804,0.00163026,4338.4,4338.3,0.486]
[1759332577313,0.5178,4339.6,4339.4,0.41454]
[1759332577508,0.5178,4339.7,4339.5,0.41453]
[1759332577713,0.5178,4339.7,4339.3,0.239]
[1759332577916,0.5178,4339.7,4339.4,0.486]
[1759332578107,0.5178,4339.7,4339.5,0.41453]
[1759332578307,0.52071963,4339.7,4339.5,0.41453]
[1759332578605,0.00291963,4339.7,4339.5,0.41453]
[1759332578809,0.5178,4339.6,4339.5,0.41453]
[1759332579311,0.00291963,4339.7,4339.5,0.239]
[1759332579516,0.5178,4339.6,4339.5,0.65353]
[1759332579711,0.5178,4339.6,4339.0,0.486]
[1759332579712,0.7223,4339.5,4339.4,0.41455]
[1759332579907,0.7223,4339.5,4339.4,0.65355]
[1759332580513,0.7223,4339.5,4338.6,0.41462]
[1759332580514,0.61904,4339.5,4338.6,0.41462]
[1759332580718,3.2078,4339.3,4338.8,0.4146]
[1759332581213,0.2045,4339.0,4338.7,0.41461]
[1759332581412,0.2045,4338.5,4337.9,3.2078]
[1759332581605,0.2045,4338.5,4338.3,0.41465]
[1759332581807,0.2045,4339.0,4338.9,0.4146]